bitfinex/quotes_BTCUSD_20250129
["timestamp","ask_amount","ask_price","bid_price","bid_amount"]
[1738161805079,0.00014226,102080.0,102070.0,2.30045416]
[1738161805285,0.000142,102120.0,102110.0,0.1469]
[1738161805487,0.00062534,102120.0,102110.0,0.1469]
[1738161806305,0.00062534,102120.0,102110.0,0.14402895]
[1738161806486,0.2447545,102120.0,102110.0,0.14402895]
[1738161806924,0.2447545,102120.0,102100.0,0.405506]
[1738161807134,0.0978685,102120.0,102110.0,0.1469]
[1738161807761,0.00062534,102120.0,102110.0,0.1469]
[1738161811481,0.1469,102110.0,102100.0,0.209645]
[1738161811687,0.8323485,102120.0,102100.0,0.356554]
[1738161812005,0.6364845,102120.0,102100.0,0.356554]
[1738161812619,0.342767,102110.0,102100.0,0.146914]
[1738161813235,0.342767,102110.0,102090.0,0.53879]
[1738161813458,0.146914,102100.0,102090.0,0.147]
[1738161813656,0.63589516,102110.0,102090.0,0.48983]
[1738161814040,0.342804,102100.0,102080.0,0.195909]
[1738161814384,0.342839,102090.0,102080.0,0.160463]
[1738161814601,0.146979,102060.0,102050.0,0.1]
[1738161814828,0.146972,102060.0,102050.0,0.146986]
[1738161815076,0.19596,102070.0,102050.0,0.146986]
[1738161815077,0.391917,102070.0,102050.0,0.146986]
[1738161815286,0.538826,102080.0,102060.0,0.146972]
[1738161815503,0.63606516,102080.0,102060.0,0.342921]
[1738161815713,0.63607016,102080.0,102060.0,0.342926]
[1738161815914,0.342909,102070.0,102060.0,0.00014226]
[1738161816125,0.146964,102070.0,102060.0,0.14711426]
[1738161816367,0.146964,102070.0,102060.0,0.00014226]
[1738161816588,0.41843196,102070.0,102060.0,0.00014226]
[1738161816793,0.15,102070.0,102060.0,0.00014226]
[1738161816994,0.342895,102080.0,102070.0,0.146957]
[1738161817202,0.44013816,102080.0,102070.0,0.146957]
[1738161817422,0.146957,102070.0,102060.0,0.34306426]
[1738161817641,0.78607116,102080.0,102060.0,0.34306826]
[1738161817848,0.24724316,102080.0,102070.0,0.146957]
[1738161818059,0.39418616,102080.0,102070.0,0.146957]
[1738161818267,0.78604416,102080.0,102060.0,0.73497026]
[1738161818476,0.59011116,102080.0,102070.0,0.146957]
[1738161818908,0.01005686,102090.0,102080.0,0.146943]
[1738161819106,0.2960684,102110.0,102080.0,0.195924]
[1738161819328,0.146929,102090.0,102070.0,0.391873]
[1738161819542,0.60613756,102100.0,102080.0,0.146943]
[1738161819746,0.80204056,102100.0,102080.0,0.342854]
[1738161819950,0.82503456,102100.0,102080.0,0.342854]
[1738161820189,0.62913456,102100.0,102090.0,0.146929]
[1738161820398,0.39416916,102100.0,102090.0,0.146929]
[1738161821251,0.146929,102090.0,102080.0,0.146943]
[1738161821490,0.98184816,102100.0,102080.0,0.342857]
[1738161821690,0.78594916,102100.0,102080.0,0.538773]
[1738161822069,0.98184616,102100.0,102080.0,0.53907162]
[1738161822276,0.78594916,102100.0,102080.0,0.53907162]
[1738161822484,0.146929,102090.0,102080.0,0.00029862]
[1738161822703,0.14815339,102090.0,102080.0,0.14724162]
[1738161822913,0.146929,102090.0,102080.0,0.00029862]
[1738161823122,0.39539666,102090.0,102080.0,0.00029862]
[1738161823332,0.39417216,102090.0,102080.0,0.00029862]
[1738161823555,0.39417216,102090.0,102080.0,0.14724162]
[1738161823756,0.39417216,102090.0,102080.0,0.00029862]
[1738161824809,0.58324056,102090.0,102080.0,0.00029862]
[1738161825025,0.68059732,102090.0,102080.0,0.00029862]
[1738161825242,0.169957,102070.0,102060.0,0.00014226]
[1738161825458,0.26842498,102070.0,102060.0,0.00014226]
[1738161825714,0.24420016,102070.0,102060.0,0.14711426]
[1738161825875,0.34289,102080.0,102070.0,0.146957]
[1738161826083,0.146943,102080.0,102070.0,0.342889]
[1738161826294,0.59497913,102090.0,102070.0,0.342889]
[1738161826529,0.66930529,102090.0,102080.0,0.146943]
[1738161826772,0.64630529,102090.0,102080.0,0.146943]
[1738161826972,0.45039829,102090.0,102080.0,0.146943]
[1738161827180,0.40419829,102090.0,102080.0,0.146943]
[1738161827888,0.16001613,102090.0,102080.0,0.146943]
[1738161828106,0.01001613,102090.0,102080.0,0.146943]
[1738161828527,0.342894,102120.0,102110.0,0.1469]
[1738161828742,0.09738516,102120.0,102100.0,0.538658]
[1738161828951,0.44013316,102120.0,102100.0,0.53866]
[1738161829158,0.342775,102110.0,102090.0,0.587679]
[1738161829373,0.342775,102110.0,102100.0,0.146914]
[1738161829597,0.1469,102110.0,102100.0,0.146914]
[1738161829804,0.29738334,102110.0,102100.0,0.146914]
[1738161830456,0.15048334,102110.0,102100.0,0.146914]
[1738161830663,0.00048334,102110.0,102100.0,0.146914]
[1738161831698,0.00048334,102110.0,102100.0,0.246914]
[1738161831907,0.00048334,102110.0,102100.0,0.35787716]
[1738161832122,0.00048334,102110.0,102100.0,0.160634]
[1738161832596,0.00248334,102110.0,102100.0,0.160634]
[1738161832823,0.00048334,102110.0,102100.0,0.160634]
[1738161833264,0.00148334,102110.0,102100.0,0.160634]
[1738161833701,0.00048334,102110.0,102100.0,0.160634]
[1738161834108,0.00062554,102110.0,102100.0,0.160634]
[1738161836740,0.00062554,102110.0,102100.0,0.146914]
[1738161836948,0.14752554,102110.0,102100.0,0.146914]
[1738161837977,0.00062554,102110.0,102100.0,0.147914]
[1738161839820,0.01055402,102110.0,102100.0,0.147914]
[1738161841064,0.00062554,102110.0,102100.0,0.34515716]
[1738161842947,0.00062554,102110.0,102100.0,0.3459978]
[1738161843545,0.00062554,102110.0,102100.0,0.5959978]
[1738161843752,5.4e-07,102110.0,102100.0,1.33251036]
[1738161843951,5.4e-07,102110.0,102100.0,0.78325536]
[1738161844175,5.4e-07,102110.0,102100.0,0.88935536]
[1738161844750,0.000142,102120.0,102110.0,1.611649]
[1738161844751,5.4e-07,102120.0,102110.0,1.611649]
[1738161844956,5.4e-07,102120.0,102110.0,0.58165612]
[1738161844957,4.6e-07,102120.0,102110.0,0.58165612]
[1738161845575,4.6e-07,102120.0,102110.0,0.58245369]
[1738161846300,4.6e-07,102120.0,102110.0,0.72895369]
[1738161846531,4.6e-07,102120.0,102110.0,0.77920696]
[1738161846990,6.6e-07,102130.0,102120.0,2.450793]
[1738161847230,6.6e-07,102130.0,102120.0,0.96939539]
[1738161847472,6.6e-07,102130.0,102120.0,0.86667187]
[1738161847719,6.6e-07,102130.0,102120.0,0.8364186]
[1738161847972,6.6e-07,102130.0,102120.0,0.8134186]
[1738161848249,6.6e-07,102130.0,102120.0,0.84367187]
[1738161848489,6.6e-07,102140.0,102130.0,1.35048427]
[1738161848742,6.6e-07,102140.0,102130.0,0.77888039]
[1738161849428,6e-08,102150.0,102140.0,2.687324]
[1738161849711,0.04719904,102190.0,102170.0,0.26]
[1738161849712,0.04139646,102180.0,102170.0,0.26]
[1738161849923,0.04139646,102180.0,102170.0,1.31993116]
[1738161850161,4.4e-07,102190.0,102180.0,0.346799]
[1738161850360,4.4e-07,102190.0,102180.0,0.53327583]
[1738161850611,4.4e-07,102190.0,102180.0,0.75167583]
[1738161851035,4.4e-07,102190.0,102180.0,0.75234311]
[1738161851219,4.4e-07,102190.0,102180.0,0.69610944]
[1738161851438,4.4e-07,102190.0,102180.0,0.66310944]
[1738161851645,4.4e-07,102190.0,102180.0,0.67670944]
[1738161851871,4.4e-07,102190.0,102180.0,0.56310944]
[1738161852075,4.4e-07,102190.0,102180.0,0.57670944]
[1738161852278,4.4e-07,102190.0,102180.0,0.36586628]
[1738161852488,4.4e-07,102190.0,102180.0,0.14746628]
[1738161852898,0.14678544,102190.0,102180.0,0.00066728]
[1738161853333,0.24525179,102190.0,102180.0,0.00066728]
[1738161853552,0.342539,102180.0,102160.0,0.356136]
[1738161853755,0.29297816,102180.0,102160.0,0.01370494]
[1738161853964,0.63553316,102180.0,102160.0,0.35630194]
[1738161854170,0.63553816,102180.0,102160.0,0.16053094]
[1738161854593,0.146814,102170.0,102160.0,0.01370494]
[1738161855379,0.43978916,102180.0,102160.0,0.16053094]
[1738161855586,0.43978916,102180.0,102160.0,0.35630094]
[1738161855994,0.53824144,102190.0,102170.0,0.342565]
[1738161856201,0.342532,102180.0,102160.0,0.35628894]
[1738161856399,0.146814,102170.0,102160.0,0.01370494]
[1738161856577,0.63553316,102180.0,102160.0,0.35629894]
[1738161856800,0.63553116,102180.0,102160.0,0.35629894]
[1738161857000,0.63553116,102180.0,102160.0,0.55206894]
[1738161857206,0.63553016,102180.0,102160.0,0.35629894]
[1738161857420,0.43978816,102180.0,102170.0,0.146814]
[1738161858210,0.54810833,102190.0,102170.0,0.342563]
[1738161858415,0.64535149,102190.0,102170.0,0.342563]
[1738161858616,0.64535149,102190.0,102170.0,0.538313]
[1738161858838,4.4e-07,102190.0,102180.0,0.146799]
[1738161859067,4.4e-07,102190.0,102180.0,0.246799]
[1738161861008,4.4e-07,102190.0,102180.0,0.346799]
[1738161861210,4.4e-07,102190.0,102180.0,0.59404216]
[1738161862291,4.4e-07,102190.0,102180.0,0.62157174]
[1738161862491,4.4e-07,102190.0,102180.0,0.76807174]
[1738161863422,4.4e-07,102190.0,102180.0,0.77807174]
[1738161863653,6.4e-07,102200.0,102190.0,0.369785]
[1738161863870,6.4e-07,102200.0,102190.0,1.66643174]
[1738161864093,6.4e-07,102200.0,102190.0,0.53481101]
[1738161864308,6.4e-07,102200.0,102190.0,0.56479726]
[1738161864524,0.0001422,102220.0,102210.0,0.346756]
[1738161864767,0.0001422,102220.0,102210.0,0.44399916]
[1738161864997,0.0001422,102220.0,102210.0,0.50178201]
[1738161865219,0.0001422,102220.0,102210.0,0.47152874]
[1738161865448,0.0001422,102220.0,102210.0,0.50178201]
[1738161865641,0.0001422,102220.0,102210.0,0.20453885]
[1738161865852,0.00062506,102220.0,102210.0,0.17428558]
[1738161867958,0.00062506,102220.0,102210.0,0.146756]
[1738161868367,0.00062506,102220.0,102210.0,0.47152874]
[1738161870142,0.00062506,102220.0,102210.0,0.27428558]
[1738161870558,0.00062506,102220.0,102210.0,0.37152874]
[1738161870770,0.00062506,102220.0,102210.0,0.50178201]
[1738161870977,0.00062506,102220.0,102210.0,0.37152874]
[1738161871183,0.00062506,102220.0,102210.0,0.34599916]
[1738161871394,0.00062506,102220.0,102210.0,0.002]
[1738161871610,0.24461022,102220.0,102210.0,0.002]
[1738161871818,0.28961022,102220.0,102210.0,0.006]
[1738161872239,0.28961022,102220.0,102200.0,0.342454]
[1738161872514,0.68093822,102220.0,102200.0,0.538139]
[1738161872793,0.48527222,102220.0,102210.0,0.002]
[1738161873311,0.345675,102210.0,102170.0,0.342553]
[1738161873538,0.195733,102180.0,102160.0,0.14712441]
[1738161873757,0.243125,102190.0,102170.0,0.146814]
[1738161873972,0.243125,102190.0,102160.0,0.53864141]
[1738161873973,0.146799,102180.0,102160.0,0.53864141]
[1738161874188,0.342535,102180.0,102160.0,0.73440141]
[1738161874405,0.146814,102170.0,102160.0,0.00029841]
[1738161874825,0.195724,102190.0,102170.0,0.146814]
[1738161875036,0.422377,102200.0,102180.0,0.538245]
[1738161875245,0.01004512,102200.0,102190.0,0.146785]
[1738161875659,0.0474,102210.0,102200.0,0.149771]
[1738161875864,0.14464316,102210.0,102200.0,0.149771]
[1738161876075,0.2254972,102220.0,102200.0,0.146771]
[1738161876299,0.25400404,102220.0,102210.0,0.146756]
[1738161876961,0.2544739,102220.0,102210.0,0.146756]
[1738161877158,0.146756,102210.0,102200.0,0.146771]
[1738161877484,0.6458169,102220.0,102200.0,0.342457]
[1738161877682,0.6458159,102220.0,102200.0,0.538142]
[1738161878086,0.146756,102210.0,102200.0,0.146771]
[1738161878669,0.146771,102200.0,102180.0,0.34251]
[1738161878869,0.29265053,102210.0,102190.0,0.146785]
[1738161879072,0.43941453,102210.0,102200.0,0.146771]
[1738161879273,0.35290774,102220.0,102210.0,0.146756]
[1738161879475,0.00062506,102220.0,102210.0,0.146756]
[1738161879685,0.00062506,102220.0,102210.0,0.34399916]
[1738161879882,0.00062506,102220.0,102210.0,0.146756]
[1738161880240,0.00062506,102220.0,102210.0,0.34399916]
[1738161880444,0.00062506,102220.0,102210.0,0.37412557]
[1738161881076,0.00062506,102220.0,102200.0,0.684637]
[1738161881284,0.00062506,102220.0,102210.0,0.146756]
[1738161881946,0.14736706,102220.0,102210.0,0.146756]
[1738161882348,0.146756,102210.0,102200.0,0.1465]
[1738161882557,0.146785,102190.0,102180.0,0.299052]
[1738161884140,0.146785,102190.0,102180.0,0.250119]
[1738161884342,0.146785,102190.0,102180.0,0.10532]
[1738161884552,0.146785,102190.0,102180.0,0.002]
[1738161884727,0.29175141,102190.0,102180.0,0.002]
[1738161884929,0.56869912,102190.0,102180.0,0.002]
[1738161885166,0.71869912,102190.0,102180.0,0.002]
[1738161885792,0.173,102180.0,102160.0,0.00029841]
[1738161886040,0.24528074,102170.0,102160.0,0.00029841]
[1738161886282,0.24405716,102170.0,102160.0,0.00029841]
[1738161886967,0.24405716,102170.0,102160.0,0.00044335]
[1738161887385,0.24405716,102170.0,102160.0,0.00144335]
[1738161887587,0.24405716,102170.0,102160.0,0.14827135]
[1738161888027,0.24405716,102170.0,102160.0,0.00144335]
[1738161889091,0.75472812,102170.0,102160.0,0.00144335]
[1738161890150,0.80132812,102170.0,102160.0,0.00144335]
[1738161890326,0.82129848,102170.0,102160.0,0.00144335]
[1738161890927,0.82129848,102170.0,102160.0,0.00244335]
[1738161891748,0.56612752,102170.0,102160.0,0.00244335]
[1738161892157,0.82129848,102170.0,102160.0,0.00044335]
[1738161892920,0.82129848,102170.0,102160.0,0.00116895]
[1738161893124,0.83101007,102170.0,102160.0,0.00044335]
[1738161894268,0.84101007,102170.0,102160.0,0.00044335]
[1738161894475,0.146871,102130.0,102120.0,0.10332]
[1738161894672,0.24533822,102130.0,102120.0,0.10332]
[1738161894876,0.24411416,102130.0,102120.0,0.10332]
[1738161895085,0.24411416,102130.0,102120.0,0.250206]
[1738161895285,0.24411416,102130.0,102120.0,0.10332]
[1738161896515,0.24411416,102130.0,102120.0,0.10412228]
[1738161897510,0.41711416,102130.0,102120.0,0.00080228]
[1738161897718,0.80351542,102130.0,102120.0,0.00080228]
[1738161897954,0.146908,102110.0,102100.0,0.146914]
[1738161898368,0.342775,102110.0,102100.0,0.00084064]
[1738161898781,0.342775,102110.0,102100.0,0.14775464]
[1738161898962,0.538618,102120.0,102100.0,0.34363464]
[1738161899166,0.1469,102110.0,102100.0,0.34363464]
[1738161899408,0.1469,102110.0,102100.0,0.14775464]
[1738161900642,0.12024316,102120.0,102110.0,0.1469]
[1738161900848,0.35236726,102130.0,102110.0,0.342751]
[1738161901054,0.44121024,102120.0,102110.0,0.00082146]
[1738161901259,0.43998616,102120.0,102110.0,0.00082146]
[1738161901440,0.52273942,102120.0,102090.0,0.53948354]
[1738161901677,0.34400825,102110.0,102090.0,0.53948354]
[1738161901888,0.24415716,102100.0,102090.0,0.00078154]
[1738161902097,0.67275842,102100.0,102090.0,0.00078154]
[1738161902304,0.146929,102090.0,102080.0,0.00029862]
[1738161902515,0.26839678,102090.0,102080.0,0.00044354]
[1738161902721,0.26717216,102090.0,102080.0,0.00044354]
[1738161902957,0.41717216,102090.0,102080.0,0.00044354]
[1738161903178,0.67277342,102090.0,102080.0,0.00044354]
[1738161903605,0.41717216,102090.0,102080.0,0.14738654]
[1738161903816,0.41717216,102090.0,102080.0,0.00044354]
[1738161904240,0.67277342,102090.0,102080.0,0.00044354]
[1738161904589,0.41711871,102090.0,102080.0,0.00044354]
[1738161904797,0.41711871,102090.0,102080.0,0.00132256]
[1738161905199,0.24724316,102090.0,102080.0,0.14926556]
[1738161906120,0.39417216,102090.0,102080.0,0.14926556]
[1738161906338,0.39417216,102090.0,102080.0,0.00232256]
[1738161906547,0.56008764,102090.0,102080.0,0.00232256]
[1738161906893,0.58308764,102090.0,102080.0,0.00232256]
[1738161907231,0.173,102080.0,102070.0,0.00029862]
[1738161907443,0.75024192,102080.0,102070.0,0.00097708]
[1738161907685,0.88591712,102080.0,102070.0,0.00029862]
[1738161907909,0.319972,102060.0,102050.0,0.0002982]
[1738161908112,0.58313064,102060.0,102050.0,0.00044046]
[1738161908468,0.58313064,102060.0,102050.0,0.00115732]
[1738161908696,0.67320233,102060.0,102050.0,0.00044046]
[1738161909352,0.67320233,102060.0,102050.0,0.00115732]
[1738161909562,0.67320233,102060.0,102050.0,0.00044046]
[1738161910011,0.41721516,102060.0,102050.0,0.00044046]
[1738161910488,0.67320233,102060.0,102050.0,0.00044046]
[1738161910909,0.76199916,102060.0,102050.0,0.00044046]
[1738161911117,0.01997036,102030.0,102010.0,0.00029883]
[1738161911338,0.67448484,102020.0,102010.0,0.00029883]
[1738161911549,0.67325933,102020.0,102010.0,0.00029883]
[1738161911763,0.69322969,102020.0,102010.0,0.00029883]
[1738161911986,0.41727216,102020.0,102010.0,0.00029883]
[1738161912215,0.69322969,102020.0,102010.0,0.00029883]
[1738161912649,0.67325933,102020.0,102010.0,0.00029883]
[1738161912855,0.41727216,102020.0,102010.0,0.00029883]
[1738161913687,0.43656655,102020.0,102010.0,0.00029883]
[1738161914123,0.69255372,102020.0,102010.0,0.00029883]
[1738161914360,0.71352408,102020.0,102010.0,0.00029883]
[1738161914566,0.72327895,102020.0,102010.0,0.00029883]
[1738161914778,0.44732142,102020.0,102010.0,0.00029883]
[1738161915638,0.70330859,102020.0,102010.0,0.00029883]
[1738161915844,0.82063571,102020.0,102010.0,0.00029883]
[1738161916072,0.70330859,102020.0,102010.0,0.00029883]
[1738161916292,0.42432142,102020.0,102010.0,0.00029883]
[1738161916740,0.44732142,102020.0,102010.0,0.00029883]
[1738161916971,0.42702703,102020.0,102010.0,0.00029883]
[1738161918519,0.6830142,102020.0,102010.0,0.00029883]
[1738161920003,0.6930142,102020.0,102010.0,0.00029883]
[1738161920631,0.6930542,102020.0,102010.0,0.00029883]
[1738161921045,0.71302456,102020.0,102010.0,0.00029883]
[1738161921881,0.78842456,102020.0,102010.0,0.00029883]
[1738161922540,0.87578132,102020.0,102010.0,0.00029883]
[1738161922967,0.77842456,102020.0,102010.0,0.00029883]
[1738161923667,0.44703739,102020.0,102010.0,0.00029883]
[1738161923882,0.42706703,102020.0,102010.0,0.00029883]
[1738161924106,0.6930542,102020.0,102010.0,0.00029883]
[1738161924323,0.78312456,102020.0,102010.0,0.00029883]
[1738161924636,0.88048132,102020.0,102010.0,0.00029883]
[1738161924883,0.88248132,102020.0,102010.0,0.00029883]
[1738161925350,0.78312456,102020.0,102010.0,0.00029883]
[1738161926917,0.79312456,102020.0,102010.0,0.00029883]
[1738161927333,0.78312456,102020.0,102010.0,0.00029883]
[1738161927537,0.78307107,102020.0,102010.0,0.00029883]
[1738161927733,0.76310071,102020.0,102010.0,0.00029883]
[1738161927945,0.78624188,102020.0,102010.0,0.00029883]
[1738161928816,0.67997107,102020.0,102010.0,0.00029883]
[1738161929051,0.68997107,102020.0,102010.0,0.00029883]
[1738161929272,0.25501354,102020.0,102010.0,0.00029883]
[1738161929484,0.10803803,102020.0,102010.0,0.00029883]
[1738161929715,0.01179487,102020.0,102010.0,0.14734283]
[1738161929957,4e-05,102020.0,102010.0,0.14734283]
[1738161930163,0.24431216,102020.0,102010.0,0.14734283]
[1738161930364,0.00104,102020.0,102010.0,0.14734283]
[1738161930577,0.00104,102020.0,102010.0,0.27334283]
[1738161930783,0.00104,102020.0,102010.0,0.28678283]
[1738161930992,4e-05,102020.0,102010.0,0.28678283]
[1738161931215,0.00104,102020.0,102010.0,0.28678283]
[1738161931868,4e-05,102020.0,102010.0,0.28678283]
[1738161932296,4e-05,102020.0,102010.0,0.99001316]
[1738161932543,0.34417097,102060.0,102040.0,0.419293]
[1738161932757,0.24545412,102050.0,102030.0,0.272308]
[1738161932976,0.147001,102040.0,102030.0,0.223308]
[1738161933180,0.0001424,102050.0,102040.0,0.147001]
[1738161933654,0.09738556,102050.0,102040.0,0.147001]
[1738161933896,0.0001424,102050.0,102040.0,0.147001]
[1738161934879,0.0001424,102050.0,102040.0,0.69613133]
[1738161935126,8e-08,102060.0,102050.0,0.224286]
[1738161935343,0.0001424,102090.0,102080.0,0.270143]
[1738161935539,0.0001424,102090.0,102080.0,0.52613017]
[1738161935826,0.0001424,102090.0,102080.0,0.55625914]
[1738161936042,0.0001424,102090.0,102080.0,0.270143]
[1738161936874,0.24431456,102090.0,102070.0,0.538806]
[1738161937074,0.146957,102070.0,102060.0,0.278962]
[1738161937229,0.63606316,102080.0,102060.0,0.425921]
[1738161937477,0.1501424,102090.0,102070.0,0.146957]
[1738161937672,0.39431456,102090.0,102070.0,0.342884]
[1738161937847,0.39431456,102090.0,102070.0,0.146957]
[1738161937848,0.24541069,102080.0,102070.0,0.146957]
[1738161938047,0.146957,102070.0,102060.0,0.278946]
[1738161938231,0.24420016,102070.0,102050.0,0.538912]
[1738161938435,0.09724316,102070.0,102060.0,0.146972]
[1738161938679,0.4929884,102090.0,102080.0,0.146943]
[1738161938886,0.0001424,102090.0,102080.0,0.146943]
[1738161939322,0.0001424,102090.0,102080.0,0.147943]
[1738161940669,0.0001424,102090.0,102080.0,0.347943]
[1738161940850,0.0001424,102090.0,102080.0,1.19245333]
[1738161941063,0.0001424,102090.0,102080.0,0.60598812]
[1738161941299,0.0001424,102090.0,102080.0,0.57588616]
[1738161941516,0.0001424,102090.0,102080.0,0.47588616]
[1738161942349,0.0001424,102090.0,102080.0,0.379643]
[1738161942556,0.0001424,102090.0,102080.0,0.38044905]
[1738161942770,0.0001424,102090.0,102080.0,0.23044905]
[1738161942981,0.1470714,102090.0,102080.0,0.14874905]
[1738161943425,0.0001424,102090.0,102080.0,0.14874905]
[1738161943847,0.24431456,102090.0,102080.0,0.00180605]
[1738161944240,0.24431456,102090.0,102080.0,0.14874905]
[1738161944541,0.24431456,102090.0,102080.0,0.00180605]
[1738161944716,0.24431456,102090.0,102080.0,0.14774905]
[1738161944933,0.24431456,102090.0,102080.0,0.00080605]
[1738161945154,0.41731456,102090.0,102080.0,0.00080605]
[1738161945381,0.67330173,102090.0,102080.0,0.00080605]
[1738161945528,0.342914,102070.0,102050.0,0.538919]
[1738161945884,0.52637273,102090.0,102070.0,0.146946]
[1738161945885,0.66985842,102090.0,102070.0,0.146946]
[1738161946100,0.44011516,102080.0,102060.0,0.62212645]
[1738161946305,0.63605216,102080.0,102060.0,0.425321]
[1738161946513,0.48910816,102080.0,102060.0,0.146972]
[1738161946730,0.48910816,102080.0,102050.0,0.195965]
[1738161946731,0.146977,102060.0,102050.0,0.146986]
[1738161946939,0.342972,102050.0,102030.0,0.684783]
[1738161947143,0.63617916,102060.0,102040.0,0.34314168]
[1738161947345,0.44020216,102060.0,102040.0,0.34313668]
[1738161947545,0.492929,102070.0,102050.0,0.342955]
[1738161947751,0.492929,102070.0,102060.0,0.146972]
[1738161947752,0.24421016,102070.0,102060.0,0.146972]
[1738161947958,0.146972,102060.0,102050.0,0.146986]
[1738161948173,0.146986,102050.0,102040.0,0.19612968]
[1738161948427,0.342957,102060.0,102040.0,0.14714568]
[1738161948641,0.342893,102080.0,102060.0,0.342922]
[1738161948849,0.63607216,102080.0,102060.0,0.342922]
[1738161949056,0.24420016,102070.0,102060.0,0.195958]
[1738161949261,0.146972,102060.0,102050.0,0.146986]
[1738161949472,0.14819682,102060.0,102050.0,0.146986]
[1738161949880,0.09846798,102060.0,102040.0,0.39212268]
[1738161950094,0.146986,102050.0,102040.0,0.00014468]
[1738161950307,0.1482109,102050.0,102040.0,0.14714568]
[1738161950521,0.1482109,102050.0,102040.0,0.24814568]
[1738161950733,0.09724316,102050.0,102040.0,0.24814568]
[1738161950935,0.146986,102050.0,102040.0,0.24814568]
[1738161951147,0.538931,102060.0,102040.0,0.64013668]
[1738161951358,0.09724316,102060.0,102050.0,0.146986]
[1738161951564,0.492915,102070.0,102060.0,0.146972]
[1738161951748,0.146972,102060.0,102050.0,0.001]
[1738161951971,0.146972,102060.0,102050.0,0.147986]
[1738161952191,0.146972,102060.0,102050.0,0.146986]
[1738161952417,0.146986,102050.0,102040.0,0.29613268]
[1738161952658,0.24422916,102050.0,102040.0,0.10014468]
[1738161952867,0.24422916,102050.0,102040.0,0.24714568]
[1738161953084,0.09724316,102050.0,102040.0,0.24714568]
[1738161953274,0.146984,102060.0,102040.0,0.63913568]
[1738161953426,0.146984,102060.0,102040.0,0.63912468]
[1738161953427,0.44019516,102060.0,102040.0,0.63912468]
[1738161953638,0.24422716,102060.0,102050.0,0.146986]
[1738161953878,0.391874,102080.0,102060.0,0.146972]
[1738161954058,0.09724316,102070.0,102050.0,0.342967]
[1738161954262,0.34417577,102060.0,102040.0,0.24714568]
[1738161954477,0.44141893,102060.0,102050.0,0.146986]
[1738161954680,0.24422416,102060.0,102050.0,0.146986]
[1738161954899,0.44019216,102060.0,102040.0,0.63912868]
[1738161955154,0.63617116,102060.0,102040.0,0.44313668]
[1738161955556,0.63617116,102060.0,102040.0,0.63912668]
[1738161955886,0.01101315,102080.0,102060.0,0.146972]
[1738161956087,0.24420016,102070.0,102060.0,0.146972]
[1738161956289,0.44014516,102070.0,102050.0,0.538923]
[1738161956523,0.63609716,102070.0,102050.0,0.538923]
[1738161956735,0.44014516,102070.0,102050.0,0.538923]
[1738161956995,0.48914216,102070.0,102050.0,0.146986]
[1738161957253,0.34416877,102060.0,102040.0,0.63941372]
[1738161957507,0.63739393,102060.0,102040.0,0.63941072]
[1738161957711,0.63739393,102060.0,102040.0,0.83540172]
[1738161957862,0.83336993,102060.0,102040.0,0.63941072]
[1738161958072,0.63739793,102060.0,102040.0,0.63941072]
[1738161958269,0.83337293,102060.0,102040.0,0.63941072]
[1738161958480,0.63739793,102060.0,102040.0,0.63941072]
[1738161959093,0.24422916,102050.0,102040.0,0.10044372]
[1738161959304,0.26722916,102050.0,102040.0,0.10044372]
[1738161959503,0.78158669,102050.0,102040.0,0.10044372]
[1738161959760,0.82778669,102050.0,102040.0,0.10144372]
[1738161960004,0.54182916,102050.0,102040.0,0.10144372]
[1738161960243,0.41722916,102050.0,102040.0,0.10044372]
[1738161960460,0.41722916,102050.0,102040.0,0.10144372]
[1738161960823,0.26722916,102050.0,102040.0,0.10044372]
[1738161961030,0.69121633,102050.0,102040.0,0.10144372]
[1738161961205,0.76761633,102050.0,102040.0,0.10144372]
[1738161961449,0.79727688,102050.0,102040.0,0.10144372]
[1738161961907,0.51131935,102050.0,102040.0,0.10144372]
[1738161962197,0.43491935,102050.0,102040.0,0.10144372]
[1738161962400,0.42691935,102050.0,102040.0,0.10044372]
[1738161962642,0.69490652,102050.0,102040.0,0.10044372]
[1738161962849,0.88363364,102050.0,102040.0,0.03058308]
[1738161963056,0.91176328,102050.0,102040.0,8e-08]
[1738161963265,0.297029,102020.0,102010.0,0.00029883]
[1738161963473,0.147044,102010.0,102000.0,0.00025884]
[1738161963679,0.26851283,102010.0,102000.0,0.00040074]
[1738161963911,0.26728716,102010.0,102000.0,0.00040074]
[1738161964138,0.69324469,102010.0,102000.0,0.00040074]
[1738161965169,0.70324469,102010.0,102000.0,0.00040074]
[1738161965402,0.67327433,102010.0,102000.0,0.00040074]
[1738161966240,0.68127433,102010.0,102000.0,0.00140074]
[1738161967019,0.72104086,102010.0,102000.0,0.00140074]
[1738161967218,0.43137957,102010.0,102000.0,0.00140074]
[1738161967635,0.28137957,102010.0,102000.0,0.00140074]
[1738161967831,0.28508333,102010.0,102000.0,0.00140074]
[1738161968215,0.11503933,102010.0,102000.0,0.14845874]
[1738161968429,0.008,102010.0,102000.0,0.14845874]
[1738161969074,0.25351252,102010.0,102000.0,0.00140074]
[1738161969281,0.25228716,102010.0,102000.0,0.14845874]
[1738161969492,0.24428716,102010.0,102000.0,0.00040074]
[1738161969701,0.24728716,102010.0,102000.0,0.00040074]
[1738161970089,0.25028716,102010.0,102000.0,0.00040074]
[1738161970353,0.42328716,102010.0,102000.0,0.00040074]
[1738161970766,0.77663109,102010.0,102000.0,0.00040074]
[1738161971182,0.67927433,102010.0,102000.0,0.00040074]
[1738161971620,0.67927433,102010.0,101980.0,0.34349641]
[1738161971621,0.023,101990.0,101970.0,0.0002982]
[1738161971826,0.41855614,101980.0,101970.0,0.0007824]
[1738161972038,0.147102,101970.0,101960.0,0.00029862]
[1738161972250,0.147102,101970.0,101960.0,0.14755941]
[1738161972460,0.24434516,101970.0,101960.0,0.00044341]
[1738161972668,0.39434516,101970.0,101960.0,0.00044341]
[1738161973472,0.41734516,101970.0,101960.0,0.00044341]
[1738161973927,0.41734516,101970.0,101960.0,0.00444341]
[1738161974539,0.80065945,101970.0,101960.0,0.00444341]
[1738161974748,0.79065945,101970.0,101960.0,0.00444341]
[1738161975409,0.80065945,101970.0,101960.0,0.00444341]
[1738161975613,0.79065945,101970.0,101960.0,0.00444341]
[1738161975820,0.79065945,101970.0,101960.0,0.00044341]
[1738161976031,0.70330269,101970.0,101960.0,0.00144341]
[1738161976240,0.41734516,101970.0,101960.0,0.00344341]
[1738161976464,0.41734516,101970.0,101960.0,0.00144341]
[1738161976888,0.4343271,101970.0,101960.0,0.00244341]
[1738161977096,0.2613271,101970.0,101960.0,0.14955941]
[1738161977306,0.25134516,101970.0,101960.0,0.14955941]
[1738161977509,0.25134516,101970.0,101960.0,0.00244341]